bitfinex-derivatives/quotes_SOLF0:USTF0_20241218
["timestamp","ask_amount","ask_price","bid_price","bid_amount"]
[1734534007629,11.3740749,215.67,215.57,2.3197]
[1734534007824,11.3740749,215.67,215.52,11.3740749]
[1734534008322,11.3740749,215.67,215.55,11.3740749]
[1734534009421,11.3740749,215.64,215.49,16.98959624]
[1734534010025,2.3199,215.56,215.51,2.3203]
[1734534010220,2.3199,215.56,215.49,16.98959624]
[1734534010526,2.32,215.55,215.51,2.3203]
[1734534010726,11.3740749,215.64,215.51,2.3203]
[1734534011124,2.3199,215.56,215.51,2.3203]
[1734534011326,11.3740749,215.64,215.49,16.98959624]
[1734534011526,2.3199,215.55,215.49,16.98959624]
[1734534012222,2.3199,215.55,215.51,2.3203]
[1734534012727,1.5072,215.61,215.49,16.98959624]
[1734534013021,31.42360324,215.7,215.55,11.3740749]
[1734534013230,3.65476053,215.69,215.55,11.3740749]
[1734534013430,2.9676,215.69,215.63,2.3191]
[1734534013629,2.9676,215.69,215.58,11.3740749]
[1734534013829,5.2861,215.69,215.65,2.3188]
[1734534014124,5.69477661,215.73,215.61,11.3740749]
[1734534014428,2.3181,215.72,215.68,2.3185]
[1734534014621,2.3181,215.72,215.61,11.3740749]
[1734534014622,11.3740749,215.76,215.61,11.3740749]
[1734534015025,2.3184,215.7,215.66,2.3187]
[1734534015229,11.3740749,215.73,215.61,11.3740749]
[1734534015428,11.3740749,215.66,215.49,5.61552134]
[1734534015622,2.32,215.55,215.5,2.3204]
[1734534015821,2.32,215.55,215.49,5.61552134]
[1734534017322,11.3740749,215.5,215.33,11.3740749]
[1734534017524,11.3740749,215.47,215.33,11.3740749]
[1734534017925,3.0088,215.49,215.37,5.53545269]
[1734534018427,2.3216,215.4,215.32,1.6058]
[1734534018633,18.21761803,215.46,215.27,18.21761803]
[1734534018826,1.4734,215.45,215.27,18.21761803]
[1734534019232,2.3218,215.38,215.27,18.21761803]
[1734534019433,18.21761803,215.42,215.23,22.91611803]
[1734534019836,2.3217,215.39,215.3,2.3226]
[1734534020039,18.21761803,215.42,215.23,22.91611803]
[1734534020431,18.21761803,215.34,215.07,22.20368283]
[1734534020628,4.4736,215.33,215.14,18.21761803]
[1734534021130,2.3229,215.28,215.2,2.3237]
[1734534021634,2.3227,215.3,215.2,2.3237]
[1734534021831,2.3227,215.3,215.21,2.3236]
[1734534022228,5.53978783,215.38,215.19,18.21761803]
[1734534022533,5.53978783,215.38,215.23,18.21761803]
[1734534022728,2.3219,215.37,215.2,19.71631803]
[1734534023233,2.3221,215.35,215.2,19.71631803]
[1734534024433,2.3221,215.35,215.27,2.3229]
[1734534024636,2.3221,215.35,215.2,19.71631803]
[1734534025429,18.21761803,215.41,215.24,18.21761803]
[1734534025627,5.49727349,215.4,215.24,18.21761803]
[1734534026235,2.3218,215.38,215.24,18.21761803]
[1734534026435,5.49727349,215.4,215.24,18.21761803]
[1734534026637,5.49727349,215.4,215.21,2.9187]
[1734534026931,2.3224,215.33,215.21,2.9187]
[1734534029140,13.92,215.51,215.28,18.21761803]
[1734534029339,22.85591803,215.48,215.29,1.4849]
[1734534029744,5.54244739,215.46,215.29,1.4849]
[1734534030137,18.21761803,215.44,215.29,1.4849]
[1734534031244,2.3217,215.39,215.33,2.3223]
[1734534031437,2.3217,215.39,215.29,1.4849]
[1734534032038,18.21761803,215.44,215.24,18.21761803]
[1734534032239,18.21761803,215.4,215.24,18.21761803]
[1734534032443,1.5445,215.39,215.24,18.21761803]
[1734534033242,1.5445,215.39,215.22,1.5959]
[1734534033448,18.21761803,215.36,215.2,18.21761803]
[1734534033645,3.0441,215.35,215.2,18.21761803]
[1734534033847,2.3226,215.31,215.24,2.3232]
[1734534034046,3.0441,215.35,215.24,2.3232]
[1734534035141,2.3228,215.29,215.22,2.3234]
[1734534035347,3.0441,215.35,215.2,18.21761803]
[1734534035742,3.0441,215.35,215.23,2.3234]
[1734534036251,2.3228,215.29,215.23,2.3234]
[1734534036847,3.0441,215.35,215.2,18.21761803]
[1734534037448,2.3224,215.32,215.27,2.3229]
[1734534037646,3.0441,215.35,215.2,18.21761803]
[1734534038045,5.71360871,215.32,215.23,2.3233]
[1734534038449,5.71360871,215.32,215.18,5.66979751]
[1734534038648,2.3226,215.3,215.25,2.3231]
[1734534039148,5.71360871,215.32,215.23,2.3233]
[1734534039847,5.71360871,215.32,215.16,18.21761803]
[1734534040046,23.93122674,215.32,215.16,18.21761803]
[1734534040351,2.3232,215.25,215.16,18.21761803]
[1734534040546,23.93122674,215.32,215.19,2.3238]
[1734534040743,23.93122674,215.32,215.14,5.62324411]
[1734534040945,18.21761803,215.28,215.06,4.6248]
[1734534041148,1.4665,215.27,215.09,18.21761803]
[1734534042144,1.4665,215.27,215.1,5.48510572]
[1734534042346,1.4665,215.27,215.09,18.21761803]
[1734534043855,2.3238,215.2,215.15,2.3242]
[1734534044155,1.4665,215.27,215.09,18.21761803]
[1734534044953,2.3235,215.23,215.18,2.3239]
[1734534045154,1.4665,215.27,215.13,18.21761803]
[1734534045957,2.3236,215.21,215.17,2.324]
[1734534046258,2.3236,215.21,215.09,18.21761803]
[1734534046555,2.324,215.18,215.09,18.21761803]
[1734534047250,18.21761803,215.24,215.09,18.21761803]
[1734534047451,3.063,215.23,215.09,18.21761803]
[1734534047855,3.063,215.23,215.11,2.3247]
[1734534048258,2.3242,215.16,215.11,2.3247]
[1734534048763,2.3242,215.16,215.12,2.3245]
[1734534049558,3.063,215.23,215.09,18.21761803]
[1734534049764,3.063,215.23,215.14,2.3244]
[1734534050358,2.3239,215.19,215.14,2.3244]
[1734534050559,3.063,215.23,215.14,2.3244]
[1734534050761,5.60405971,215.21,215.13,2.3245]
[1734534051465,2.324,215.18,215.13,2.3245]
[1734534051668,5.60405971,215.21,215.13,2.3245]
[1734534051969,2.3241,215.17,215.09,18.21761803]
[1734534052160,3.063,215.23,215.09,18.21761803]
[1734534053060,3.063,215.23,215.06,7.18643676]
[1734534054166,11.41676827,215.2,215.06,18.60320503]
[1734534054366,2.3243,215.15,215.11,2.3247]
[1734534056558,2.3245,215.13,215.09,2.3249]
[1734534057165,2.3244,215.14,215.1,2.3247]
[1734534057963,2.3245,215.13,215.1,2.3247]
[1734534058364,11.41676827,215.17,215.06,1.5592]
[1734534058668,11.41676827,215.14,215.01,7.12877632]
[1734534059667,2.3249,215.09,215.05,2.3252]
[1734534060269,11.41676827,215.14,215.0,150.16174684]
[1734534060270,11.41676827,215.08,215.0,150.16174684]
[1734534060466,11.41676827,215.08,215.0,149.47182032]
[1734534060467,11.41676827,215.03,215.0,149.47182032]
[1734534060671,2.3258,215.01,215.0,149.47182032]
[1734534061569,2.3258,215.01,215.0,142.22992032]
[1734534061765,11.41676827,215.03,215.0,142.22992032]
[1734534061969,1.5167,215.08,215.0,142.22992032]
[1734534062763,2.3255,215.04,215.0,144.55582032]
[1734534062967,23.93183599,215.16,215.0,142.22992032]
[1734534063165,2.3252,215.07,215.02,2.3256]
[1734534063366,18.28624825,215.08,215.0,142.22992032]
[1734534063667,18.28624825,215.04,215.0,142.22992032]
[1734534064069,2.3258,215.01,215.0,142.22992032]
[1734534065372,2.3258,215.01,215.0,41.73954733]
[1734534066480,18.28624825,215.04,215.0,41.73954733]
[1734534066975,2.3258,215.01,215.0,41.73954733]
[1734534067972,18.28624825,215.08,215.0,41.73954733]
[1734534068175,21.34654825,215.12,215.01,2.3258]
[1734534068375,21.34654825,215.12,215.0,41.73954733]
[1734534068671,191.018984,215.16,215.0,41.73954733]
[1734534068865,18.28624825,215.19,215.01,4.5593]
[1734534069073,2.3243,215.15,215.01,4.5593]
[1734534069270,18.28624825,215.19,215.01,4.5593]
[1734534070167,2.3243,215.15,215.01,4.5593]
[1734534070370,2.3243,215.15,215.1,2.3248]
[1734534070571,18.28624825,215.19,215.03,18.28624825]
[1734534070768,5.54537051,215.2,215.03,18.28624825]
[1734534071175,5.54537051,215.2,215.01,4.5593]
[1734534071176,18.28624825,215.23,215.07,18.28624825]
[1734534071375,2.3236,215.22,215.07,18.28624825]
[1734534071575,23.93991369,215.23,215.07,18.28624825]
[1734534071974,23.93991369,215.23,215.03,18.28624825]
[1734534072172,18.28624825,215.19,215.03,18.28624825]
[1734534072569,2.3243,215.16,215.03,18.28624825]
[1734534072775,18.28624825,215.19,215.03,18.28624825]
[1734534072970,23.93991369,215.23,215.03,18.28624825]
[1734534073174,2.3238,215.2,215.14,2.3243]
[1734534073370,23.93991369,215.23,215.03,18.28624825]
[1734534075176,2.3239,215.18,215.13,2.3244]
[1734534075372,23.93991369,215.23,215.14,1.4525]
[1734534075573,18.28624825,215.19,215.03,18.28624825]
[1734534075776,2.3245,215.13,215.08,2.325]
[1734534075979,18.28624825,215.15,215.04,1.4525]
[1734534076581,18.28624825,215.11,215.04,1.4525]
[1734534076781,2.3253,215.05,215.04,1.4525]
[1734534077277,2.3252,215.07,215.04,1.4525]
[1734534077478,18.28624825,215.15,215.04,1.4525]
[1734534078086,18.28624825,215.19,215.04,1.4525]
[1734534078783,18.28624825,215.19,215.1,2.3248]
[1734534078984,18.28624825,215.19,215.04,1.4525]
[1734534079173,20.61014825,215.19,215.08,2.325]
[1734534079376,23.93991369,215.23,215.07,18.28624825]
[1734534079977,2.3236,215.22,215.07,18.28624825]
[1734534080181,23.93991369,215.23,215.07,18.28624825]
[1734534080589,23.93991369,215.23,215.04,1.4525]
[1734534080787,18.28624825,215.19,215.04,1.4525]
[1734534080977,2.324,215.17,215.12,2.3246]
[1734534081278,23.93991369,215.23,215.04,1.4525]
[1734534083085,18.28624825,215.19,215.04,1.4525]
[1734534083284,2.3244,215.15,215.04,1.4525]
[1734534084286,2.3243,215.15,215.04,1.4525]
[1734534085380,18.28624825,215.19,215.04,1.4525]
[1734534085880,18.28624825,215.15,215.03,2.3255]
[1734534086089,18.28624825,215.11,215.0,41.73954733]
[1734534086482,2.9137,215.1,215.0,41.73954733]
[1734534086781,18.28624825,215.07,215.0,41.73954733]
[1734534087087,2.3258,215.01,215.0,41.73954733]
[1734534088985,18.28624825,215.07,215.0,41.73954733]
[1734534090189,2.3258,215.01,215.0,41.73954733]
[1734534090388,18.28624825,215.07,215.0,41.73954733]
[1734534090581,2.9137,215.1,215.0,41.73954733]
[1734534090784,2.3254,215.05,215.0,41.73954733]
[1734534091084,5.45610627,215.12,215.0,41.73954733]
[1734534091387,5.45610627,215.12,215.0,44.73934733]
[1734534091587,18.28624825,215.16,215.0,44.73934733]
[1734534091588,3.1,215.18,215.0,44.73934733]
[1734534091790,2.3244,215.14,215.1,2.3248]
[1734534091985,3.1,215.18,215.04,1.5871]
[1734534092185,5.65366544,215.23,215.07,18.28624825]
[1734534092391,2.3236,215.21,215.07,18.28624825]
[1734534093090,2.3236,215.21,215.16,2.3241]
[1734534093290,5.65366544,215.23,215.11,18.28624825]
[1734534093485,7.97706544,215.23,215.12,3.0446]
[1734534093685,18.28624825,215.28,215.12,3.0446]
[1734534093988,2.3228,215.29,215.23,2.3234]
[1734534094194,18.28624825,215.34,215.16,1.4577]
[1734534094395,0.68395629,215.33,215.16,1.4577]
[1734534094990,2.3226,215.3,215.21,2.3236]
[1734534095290,5.6074428,215.31,215.16,1.4577]
[1734534095899,1.5934,215.36,215.19,18.28624825]
[1734534096088,1.5934,215.36,215.25,2.3232]
[1734534096288,1.5934,215.36,215.19,18.28624825]
[1734534096489,18.28624825,215.34,215.16,1.4577]
[1734534096697,2.323,215.27,215.21,2.3236]
[1734534096997,5.61937897,215.33,215.16,7.08321488]
[1734534097996,2.3228,215.29,215.22,2.3235]
[1734534098198,5.61937897,215.33,215.16,7.08321488]
[1734534098388,5.61937897,215.33,215.19,18.28624825]
[1734534098600,2.3224,215.32,215.26,2.3231]
[1734534098893,23.90562722,215.33,215.16,7.08321488]
[1734534099290,18.28624825,215.29,215.16,1.4577]
[1734534099492,0.6835911,215.28,215.16,1.4577]
[1734534099687,0.6835911,215.28,215.12,1.5723]
[1734534099890,18.28624825,215.25,215.12,1.5723]
[1734534100897,18.28624825,215.25,215.14,2.3243]
[1734534101496,18.28624825,215.25,215.09,5.70712573]
[1734534101697,18.28624825,215.25,215.08,1.55]
[1734534101897,2.3244,215.14,215.08,1.55]
[1734534102089,18.28624825,215.21,215.08,1.55]
[1734534102491,18.28624825,215.21,215.08,3.875]
[1734534102799,18.28624825,215.21,215.03,18.28624825]
[1734534102991,18.28624825,215.17,215.02,1.6079]
[1734534103294,2.325,215.09,215.02,1.6079]
[1734534103696,2.325,215.09,215.03,2.3254]
[1734534103892,5.57972036,215.22,215.01,3.0099]
[1734534104094,18.28624825,215.18,215.01,3.0099]
[1734534104398,2.3243,215.15,215.03,18.28624825]
[1734534104598,18.28624825,215.18,215.03,18.28624825]
[1734534105301,18.28624825,215.18,215.01,3.0099]
[1734534105501,18.28624825,215.18,215.03,18.28624825]
[1734534105702,2.3244,215.14,215.09,2.3249]
[1734534106094,23.86596861,215.22,215.03,18.28624825]
[1734534106297,2.3242,215.16,215.1,2.3247]
[1734534106600,23.86596861,215.22,215.1,2.3247]
[1734534106796,2.3243,215.15,215.1,2.3247]
[1734534107299,23.86596861,215.22,215.1,2.3247]
[1734534107497,23.86596861,215.22,215.11,2.3246]
[1734534107794,23.86596861,215.22,215.04,1.4639]
[1734534107995,18.28624825,215.1,215.0,41.73954733]
[1734534108197,3.0176,215.09,215.0,41.73954733]
[1734534108604,2.3256,215.04,215.0,41.73954733]
[1734534108800,3.0176,215.09,215.0,41.73954733]
[1734534108998,2.3255,215.04,215.0,41.73954733]
[1734534109400,3.0176,215.09,215.0,41.73954733]
[1734534109606,2.3257,215.03,215.0,41.73954733]
[1734534109807,3.0176,215.09,215.0,41.73954733]
[1734534110105,2.3256,215.03,215.0,41.73954733]
[1734534110302,3.0176,215.09,215.0,41.73954733]
[1734534110506,18.28624825,215.08,215.0,41.73954733]
[1734534110706,2.3258,215.01,215.0,41.73954733]
[1734534110908,18.28624825,215.08,215.0,41.73954733]
[1734534111407,2.3258,215.01,215.0,41.73954733]
[1734534113199,2.3258,215.01,215.0,32.11664733]
[1734534113399,2.3268,214.92,214.84,22.87724825]
[1734534114107,18.28624825,215.04,214.84,18.28624825]
[1734534114314,0.68085065,215.03,214.84,18.28624825]
[1734534114706,2.3268,214.92,214.86,2.3274]
[1734534114909,18.28624825,215.0,214.86,2.3274]
[1734534115109,18.28624825,215.0,214.84,18.28624825]
[1734534115409,2.3264,214.96,214.84,20.61374825]
[1734534115713,18.28624825,215.0,214.84,18.28624825]
[1734534116011,2.327,214.9,214.85,2.3275]
[1734534116204,18.28624825,215.0,214.84,18.28624825]
[1734534117311,2.327,214.9,214.85,2.3274]
[1734534117807,2.3272,214.88,214.83,2.3277]
[1734534118112,18.28624825,215.0,214.8,18.28624825]
[1734534118305,2.3271,214.89,214.81,2.3279]
[1734534118507,5.68154397,214.92,214.8,18.28624825]
[1734534119010,2.3269,214.91,214.83,2.3277]
[1734534119207,5.68154397,214.92,214.8,18.28624825]
[1734534119713,2.3272,214.88,214.8,18.28624825]
[1734534120410,2.3273,214.87,214.8,18.28624825]
[1734534120713,5.68154397,214.92,214.8,18.28624825]
[1734534121008,2.3272,214.89,214.83,2.3276]
[1734534121211,5.68154397,214.92,214.83,2.3276]
[1734534121412,5.68154397,214.92,214.8,18.28624825]
[1734534122014,2.3271,214.9,214.8,18.28624825]
[1734534122314,5.68154397,214.92,214.8,18.28624825]
[1734534122714,5.68154397,214.92,214.82,2.3278]
[1734534122918,23.96779222,214.92,214.73,18.28624825]
[1734534123511,23.96779222,214.92,214.74,1.5539]
[1734534123712,2.328,214.81,214.77,2.3284]
[1734534124014,23.96779222,214.92,214.74,1.5539]
[1734534125104,2.3278,214.82,214.74,1.5539]
[1734534125716,23.96779222,214.92,214.74,1.5539]
[1734534126011,5.68154397,214.92,214.74,1.5539]
[1734534126620,2.3273,214.87,214.82,2.3277]
[1734534126914,5.68154397,214.92,214.74,1.5539]
[1734534127610,2.3274,214.86,214.74,1.5539]
[1734534127817,5.68154397,214.92,214.77,18.28624825]
[1734534128016,5.68154397,214.92,214.87,2.3272]
[1734534128017,2.3269,214.91,214.87,2.3272]
[1734534128214,5.68154397,214.92,214.81,18.28624825]
[1734534128411,18.28624825,214.98,214.81,18.28624825]
[1734534128618,5.67945371,214.93,214.78,3.1559]
[1734534129315,5.67945371,214.93,214.88,2.3271]
[1734534130019,2.3269,214.91,214.86,2.3273]
[1734534130318,5.67945371,214.93,214.78,3.1559]
[1734534132221,2.3273,214.88,214.78,3.1559]
[1734534132521,5.67945371,214.93,214.78,3.1559]
[1734534132820,2.3268,214.92,214.88,2.3271]
[1734534133214,8.00605371,214.93,214.82,2.3278]
[1734534133419,18.28624825,214.98,214.83,1.5334]
[1734534133620,18.28624825,215.02,214.83,1.5334]
[1734534133818,2.3265,214.95,214.83,1.5334]
[1734534134017,18.28624825,215.02,214.83,1.5334]
[1734534134217,2.3263,214.96,214.87,2.3272]
[1734534134417,18.28624825,214.98,214.83,1.5334]
[1734534135415,18.28624825,214.94,214.83,1.5334]
[1734534135622,2.3271,214.89,214.83,1.5334]
[1734534135923,18.28624825,214.96,214.83,1.5334]
[1734534136524,2.3271,214.9,214.85,2.3274]
[1734534136720,18.28624825,214.96,214.83,1.5334]
[1734534137427,18.28624825,214.92,214.83,1.5334]
[1734534137923,18.28624825,214.92,214.78,3.1559]
[1734534138420,18.28624825,214.92,214.78,8.8280061]
[1734534138625,18.28624825,214.96,214.78,8.8280061]
[1734534139125,18.28624825,214.96,214.8,18.28624825]
[1734534140122,5.45773247,214.99,214.8,18.28624825]
[1734534140329,2.56,214.98,214.81,2.56]
[1734534140523,2.3264,214.95,214.91,2.3269]
[1734534141119,2.3266,214.94,214.9,2.3269]
[1734534141323,2.56,214.98,214.81,2.56]
[1734534142327,2.56,214.98,214.91,2.3268]
[1734534142639,2.56,214.98,214.81,2.56]
[1734534142826,2.3266,214.94,214.81,2.56]
[1734534143021,2.56,214.98,214.81,2.56]
[1734534143228,18.28624825,214.96,214.8,18.28624825]
[1734534143429,18.28624825,214.96,214.79,2.56]
[1734534144029,2.327,214.9,214.86,2.3274]
[1734534144325,4.887,214.9,214.8,11.44471514]
[1734534144526,2.3271,214.89,214.8,11.44471514]
[1734534145734,2.3272,214.88,214.8,11.44471514]
[1734534146028,2.56,214.9,214.78,11.3880061]
[1734534146230,11.44471514,214.94,214.82,2.3278]
[1734534146422,2.56,214.93,214.8,11.44471514]
[1734534146823,2.3271,214.89,214.8,11.44471514]
[1734534147030,2.56,214.88,214.8,11.44471514]
[1734534147227,2.56,214.93,214.83,11.44471514]
[1734534147432,4.8867,214.93,214.89,2.327]
[1734534147634,2.56,214.93,214.84,1.5508]
[1734534148536,2.56,214.93,214.89,2.3271]
[1734534148733,2.56,214.93,214.84,12.99551514]
[1734534149135,11.44471514,214.97,214.84,1.5508]
[1734534149437,2.56,214.96,214.84,1.5508]
[1734534149734,2.56,214.96,214.86,11.44471514]
[1734534150330,2.56,214.97,214.86,11.44471514]
[1734534151536,2.3267,214.93,214.84,1.5508]
[1734534151730,2.56,214.97,214.84,12.99551514]
[1734534152129,2.3267,214.93,214.84,12.99551514]
[1734534152330,2.56,214.97,214.84,12.99551514]
[1734534152734,2.3267,214.93,214.88,2.3271]
[1734534152929,2.3267,214.93,214.84,12.99551514]
[1734534153136,2.56,214.92,214.84,12.99551514]
[1734534153332,2.56,214.92,214.89,2.3271]
[1734534153333,4.8868,214.92,214.89,2.3271]
[1734534153633,2.56,214.92,214.82,11.44471514]
[1734534153835,2.3269,214.91,214.87,2.3273]
[1734534154029,5.51035033,215.01,214.85,11.44471514]
[1734534154235,2.56,215.0,214.88,11.44471514]
[1734534154435,2.56,215.0,214.89,4.5321]
[1734534155035,2.326,215.0,214.96,2.3263]
[1734534155330,2.56,215.04,214.89,7.0921]
[1734534155531,2.56,215.04,214.95,2.3264]
[1734534155532,2.3256,215.03,214.95,2.3264]
[1734534155832,2.56,215.04,214.92,11.44471514]
[1734534156036,2.3261,214.98,214.93,2.3265]
[1734534156231,11.44471514,215.01,214.93,2.3265]
[1734534156434,2.56,215.0,214.89,10.06608385]
[1734534156737,2.56,215.0,214.89,21.51079899]
[1734534156933,2.56,215.0,214.89,24.07079899]
[1734534157338,2.3261,214.99,214.95,2.3264]
[1734534157539,2.56,215.0,214.89,24.07079899]
[1734534157736,11.44471514,215.01,214.89,24.07079899]
[1734534157937,2.56,215.0,214.89,21.51079899]
[1734534158542,2.56,215.0,214.92,11.44471514]
[1734534159342,2.56,215.04,214.92,11.44471514]
[1734534159539,2.56,215.04,214.95,11.44471514]
[1734534160643,2.56,215.03,214.95,11.44471514]
[1734534162441,2.56,215.03,214.92,11.44471514]
[1734534163135,2.56,215.03,214.89,10.06608385]
[1734534163136,2.56,215.03,214.91,11.44471514]
[1734534163541,2.56,215.03,214.89,10.06608385]
[1734534163740,2.56,215.03,214.9,11.44471514]
[1734534167947,2.56,215.03,214.93,11.44471514]
[1734534170644,2.56,215.03,214.89,10.06608385]
[1734534170844,2.56,215.03,214.9,11.44471514]
[1734534172842,11.44471514,214.93,214.71,51.39081041]
[1734534173042,2.54,214.92,214.79,16.06611514]
[1734534173247,2.54,214.92,214.8,11.44471514]
[1734534173443,2.54,214.92,214.79,4.6214]
[1734534173643,2.54,214.92,214.8,11.44471514]
[1734534174244,2.54,214.92,214.83,11.44471514]
[1734534174547,2.54,214.91,214.86,11.44471514]
[1734534174747,5.53187609,214.96,214.86,11.44471514]
[1734534174748,2.54,214.9,214.86,11.44471514]
[1734534175246,2.54,214.92,214.86,11.44471514]
[1734534175445,2.54,214.94,214.89,11.44471514]
[1734534175842,2.54,214.94,214.9,3.0432]
[1734534176045,2.54,214.94,214.9,4.5817]
[1734534177039,244.258984,215.09,214.9,4.5817]
[1734534177040,11.44471514,215.05,214.9,4.5817]
[1734534177241,2.54,215.04,214.9,4.5817]
[1734534179552,11.44471514,215.02,214.9,4.5817]
[1734534182449,11.44471514,215.02,214.86,11.44471514]
[1734534182655,11.44471514,215.02,214.87,1.5998]
[1734534182855,2.54,215.04,214.89,11.44471514]
[1734534183054,11.44471514,215.05,214.92,11.44471514]
[1734534183355,2.54,215.04,214.92,11.44471514]
[1734534184156,11.44471514,215.02,214.89,11.44471514]
[1734534185057,2.54,215.04,214.89,11.44471514]
[1734534185250,11.44471514,215.05,214.92,11.44471514]
[1734534185251,2.54,215.03,214.92,11.44471514]
[1734534187558,11.44471514,215.08,214.92,11.44471514]
[1734534187859,2.54,215.06,214.95,11.44471514]
[1734534188159,2.54,215.06,214.96,4.5387]
[1734534188957,50.37745876,215.07,214.98,11.44471514]
[1734534189161,2.54,215.05,214.98,11.44471514]
[1734534189555,2.54,215.07,214.98,11.44471514]
[1734534190661,2.54,215.07,214.96,4.5387]
[1734534191453,11.44471514,215.05,214.96,2.9955]
[1734534192354,254.69197866,215.21,215.01,11.44471514]
[1734534192554,5.71803495,215.15,215.04,11.44471514]
[1734534192754,0.67944586,215.14,215.04,11.44471514]
[1734534193164,19.13654739,215.14,215.02,1.4926]
[1734534193463,0.67955193,215.13,215.02,1.4926]
[1734534193763,0.67951204,215.12,215.02,1.4926]
[1734534194062,2.54,215.11,215.02,1.4926]
[1734534194263,2.54,215.11,215.04,11.44471514]
[1734534194459,5.71803495,215.15,215.07,11.44471514]
[1734534194663,2.54,215.14,215.07,11.44471514]
[1734534194863,18.45268126,215.19,215.07,11.44471514]
[1734534195064,2.54,215.18,215.1,11.44471514]
[1734534195269,2.54,215.18,215.13,11.44471514]
[1734534195767,2.54,215.18,215.1,11.44471514]
[1734534198068,17.00172576,215.23,215.1,11.44471514]
[1734534198262,3.31987482,215.22,215.1,11.44471514]
[1734534198561,2.64,215.22,215.13,11.44471514]
[1734534198765,2.64,215.22,215.16,11.44471514]
[1734534199172,2.64,215.22,215.13,11.44471514]
[1734534199863,11.44471514,215.2,215.11,1.5875]
[1734534200069,11.44471514,215.17,215.08,3.0445]
[1734534200362,2.64,215.16,215.08,3.0445]
[1734534202571,11.44471514,215.14,215.01,12.93951514]
[1734534202868,11.44471514,215.14,215.02,2.9547]
[1734534203971,2.64,215.16,215.04,11.44471514]
[1734534204370,2.64,215.16,215.07,11.44471514]
[1734534208179,2.64,215.16,215.04,11.44471514]
[1734534208574,11.44471514,215.15,215.02,2.9547]
[1734534209980,0.67932943,215.14,215.02,2.9547]
[1734534210176,11.44471514,215.15,215.02,2.9547]
[1734534211884,11.44471514,215.12,215.02,2.9547]
[1734534212083,11.44471514,215.09,215.02,2.9547]
[1734534212280,11.44471514,215.06,214.92,11.44471514]
[1734534212479,2.64,215.05,214.95,1.5395]
[1734534212882,11.44471514,215.03,214.95,1.5395]
[1734534213275,11.44471514,215.03,214.93,3.0737]
[1734534213983,2.64,215.05,214.9,1.5395]
[1734534213984,11.44471514,215.0,214.9,1.5395]
[1734534214184,11.44471514,214.97,214.85,1.5851]
[1734534214386,2.3272,214.89,214.85,1.5851]
[1734534214786,2.3274,214.87,214.85,1.5851]
[1734534214989,2.64,214.9,214.85,1.5851]
[1734534215390,2.3274,214.86,214.85,1.5851]
[1734534216486,2.64,214.9,214.84,1.5395]
[1734534216487,2.3275,214.85,214.84,1.5395]
[1734534216787,2.64,214.85,214.82,1.4571]
[1734534217286,2.64,214.89,214.83,11.44471514]
[1734534217481,16.09561514,215.05,214.82,1.4571]
[1734534217482,2.64,214.92,214.86,11.44471514]
[1734534217887,2.327,214.9,214.86,11.44471514]
[1734534218084,2.64,214.92,214.86,11.44471514]
[1734534218889,2.64,214.92,214.83,11.44471514]
[1734534219089,2.64,214.92,214.86,11.44471514]
[1734534219284,2.64,214.95,214.89,11.44471514]
[1734534219587,2.64,214.95,214.9,1.5575]
[1734534221383,2.3269,214.91,214.9,1.5575]
[1734534221587,2.64,214.95,214.83,1.6035]
[1734534221887,2.3271,214.89,214.84,2.3275]
[1734534222085,2.64,214.9,214.83,1.6035]
[1734534222790,2.3271,214.89,214.83,3.9311]
[1734534223092,2.3271,214.89,214.83,1.6035]
[1734534223391,2.3272,214.88,214.83,1.6035]
[1734534223588,2.64,214.9,214.83,1.6035]
[1734534223989,2.3274,214.86,214.83,1.6035]
[1734534224286,2.64,214.9,214.83,1.6035]
[1734534224986,2.3276,214.84,214.83,1.6035]
[1734534225990,4.9675,214.85,214.83,1.6035]
[1734534226382,2.64,214.85,214.83,1.6035]
[1734534226891,4.9675,214.85,214.83,1.6035]
[1734534227087,2.64,214.85,214.83,1.6035]